fUSD/lending_fUSD_20240327
["ID","MTS","AMOUNT","RATE_DAILY","PERIOD"]
[320778462,1711553489591,-543.77,0.00055068,120]
[320778463,1711553489607,-462.22031,0.00055068,120]
[320778464,1711553489619,-500.0,0.00055068,120]
[320778465,1711553489630,-668.96,0.00055068,120]
[320778466,1711553489640,-861.28,0.00055068,120]
[320778467,1711553489651,-216.14600691,0.00055068,120]
[320778468,1711553489662,-500.0,0.00055068,120]
[320778469,1711553489673,-500.0,0.00055068,120]
[320778470,1711553489684,-686.87,0.00055068,120]
[320778471,1711553489694,-151.0,0.00055068,120]
[320778472,1711553489705,-500.0,0.00055068,120]
[320778473,1711553489715,-1655.1,0.00055068,120]
[320778474,1711553489725,-1331.8,0.00055068,120]
[320778475,1711553489735,-736.21,0.00055068,120]
[320778476,1711553489745,-500.0,0.00055068,120]
[320778477,1711553489755,-8854.03,0.00055068,120]
[320778478,1711553489765,-500.0,0.00055068,120]
[320778479,1711553489775,-625.06,0.00055068,120]
[320778480,1711553489784,-500.0,0.00055068,120]
[320778481,1711553489795,-569.7,0.00055068,120]
[320778482,1711553489804,-1026.49,0.00055068,120]
[320778483,1711553489814,-969.83,0.00055068,120]
[320778484,1711553489824,-500.0,0.00055068,120]
[320778485,1711553489834,-500.0,0.00055068,120]
[320778486,1711553489844,-1814.83,0.00055068,120]
[320778487,1711553489859,-500.0,0.00055068,120]
[320778488,1711553489869,-500.0,0.00055068,120]
[320778489,1711553489879,-191.038377,0.00055068,120]
[320778490,1711553489888,-913.83,0.00055068,120]
[320778491,1711553489898,-1786.6,0.00055068,120]
[320778492,1711553489908,-500.0,0.00055068,7]
[320778493,1711553489919,-500.0,0.00055068,120]
[320778494,1711553489928,-2102.27,0.00055068,120]
[320778495,1711553489937,-191.038377,0.00055068,120]
[320778496,1711553489947,-901.38,0.00055068,120]
[320778497,1711553489956,-607.18,0.00055068,120]
[320778498,1711553489966,-1568.8,0.00055068,120]
[320778499,1711553489976,-760.83,0.00055068,120]
[320778500,1711553489985,-1186.25,0.00055068,120]
[320778501,1711553489995,-151.0,0.00055068,120]
[320778502,1711553490008,-6991.21,0.00055068,120]
[320778503,1711553490017,-1537.94,0.00055068,120]
[320778504,1711553490026,-500.0,0.00055068,120]
[320778505,1711553490036,-900.9,0.00055068,120]
[320778506,1711553490045,-500.0,0.00055068,120]
[320778507,1711553490054,-500.0,0.00055068,120]
[320778508,1711553490064,-674.89,0.00055068,120]
[320778509,1711553490073,-7302.29,0.00055068,120]
[320778510,1711553490082,-588.79,0.00055068,120]
[320778511,1711553490091,-13451.5,0.00055068,120]
[320778512,1711553490103,-4580.08,0.00055068,120]
[320778513,1711553490112,-500.0,0.00055068,120]
[320778514,1711553490121,-500.0,0.00055068,120]
[320778515,1711553490130,-500.0,0.00055068,120]
[320778516,1711553490139,-500.0,0.00055068,120]
[320778517,1711553490148,-5189.29,0.00055068,120]
[320778518,1711553490157,-591.81,0.00055068,120]
[320778519,1711553490166,-500.0,0.00055068,120]
[320778520,1711553490176,-550.61,0.00055068,120]
[320778521,1711553490185,-761.47,0.00055068,120]
[320778522,1711553490195,-595.42,0.00055068,120]
[320778523,1711553490205,-2785.35,0.00055068,120]
[320778524,1711553490215,-67609.91,0.00055068,120]
[320778525,1711553490224,-500.0,0.00055068,120]
[320778526,1711553490233,-500.0,0.00055068,120]
[320778527,1711553490243,-500.0,0.00055068,120]
[320778528,1711553490252,-671.65,0.00055068,120]
[320778529,1711553490262,-5671.67,0.00055068,120]
[320778530,1711553490272,-500.0,0.00055068,120]
[320778531,1711553490281,-3381.36,0.00055068,120]
[320778532,1711553490290,-1358.4,0.00055068,120]
[320778533,1711553490300,-500.0,0.00055068,120]
[320778534,1711553490309,-2092.96,0.00055068,120]
[320778535,1711553490318,-500.0,0.00055068,120]
[320778536,1711553490328,-1243.56,0.00055068,120]
[320778537,1711553490337,-6690.64,0.00055068,120]
[320778538,1711553490347,-500.0,0.00055068,120]
[320778539,1711553490359,-500.0,0.00055068,120]
[320778540,1711553490368,-750.59,0.00055068,120]
[320778541,1711553490379,-611.06,0.00055068,120]
[320778542,1711553490388,-741.12,0.00055068,120]
[320778543,1711553490398,-500.0,0.00055068,120]
[320778544,1711553490409,-3086.02,0.00055068,120]
[320778545,1711553490419,-151.0,0.00055068,120]
[320778546,1711553490429,-790.75,0.00055068,120]
[320778547,1711553490438,-2407.06,0.00055068,120]
[320778548,1711553490447,-5657.94,0.00055068,120]
[320778549,1711553490457,-1107.76,0.00055068,120]
[320778550,1711553490466,-500.0,0.00055068,120]
[320778551,1711553490475,-11997.26,0.00055068,120]
[320778552,1711553490487,-500.0,0.00055068,120]
[320778553,1711553490496,-818.86,0.00055068,120]
[320778554,1711553490505,-500.0,0.00055068,120]
[320778555,1711553490515,-500.0,0.00055068,120]
[320778556,1711553490526,-500.0,0.00055068,120]
[320778557,1711553490536,-4629.55,0.00055068,120]
[320778558,1711553490546,-3475.94,0.00055068,120]
[320778559,1711553490555,-500.0,0.00055068,120]
[320778560,1711553490564,-1977.07,0.00055068,120]
[320778561,1711553490574,-835.79,0.00055068,120]
[320778562,1711553490584,-2713.7,0.00055068,120]
[320778563,1711553490594,-410.9987871,0.00055068,120]
[320778564,1711553490607,-1159.13,0.00055068,120]
[320778565,1711553490616,-1528.18,0.00055068,120]
[320778566,1711553490626,-6786.82,0.00055068,120]
[320778567,1711553490636,-793.54,0.00055068,120]
[320778568,1711553490645,-5287.55,0.00055068,120]
[320778569,1711553490655,-500.0,0.00055068,120]
[320778570,1711553490666,-3269.33,0.00055068,120]
[320778571,1711553490677,-2001.31,0.00055068,120]
[320778572,1711553490687,-2237.57,0.00055068,120]
[320778573,1711553490697,-2349.98,0.00055068,120]
[320778574,1711553490707,-500.0,0.00055068,15]
[320778575,1711553490717,-648.32,0.00055068,120]
[320778576,1711553490728,-1626.95,0.00055068,120]
[320778577,1711553490738,-500.0,0.00055068,120]
[320778578,1711553490798,-500.0,0.00055068,120]
[320778579,1711553490808,-2987.09,0.00055068,120]
[320778580,1711553490818,-500.0,0.00055068,120]
[320778581,1711553490827,-1635.14,0.00055068,120]
[320778582,1711553490836,-500.0,0.00055068,120]
[320778583,1711553490845,-500.0,0.00055068,120]
[320778584,1711553490858,-912.7,0.00055068,120]
[320778585,1711553490868,-1000.0,0.00055068,14]
[320778586,1711553490877,-479.42,0.00055068,120]
[320778587,1711553490886,-1761.41,0.00055068,120]
[320778588,1711553490895,-13667.18458696,0.00055068,120]
[320778589,1711553491206,-1108.09,0.00055068,120]
[320778590,1711553491222,-1497.64047339,0.00055068,120]
[320778591,1711553491265,-651.04002531,0.00055068,120]
[320778592,1711553491276,-744.40000085,0.00055068,120]
[320778593,1711553491372,-4140.88250008,0.00047151,2]
[320778594,1711553491381,-1171.71491349,0.00055068,120]
[320778595,1711553491391,-1577.89,0.00055068,120]
[320778596,1711553491400,-1164.92,0.00055068,120]
[320778597,1711553491409,-9152.34,0.00055068,120]
[320778598,1711553491418,-4763.49,0.00055068,120]
[320778599,1711553491436,-617.48,0.00055068,120]
[320778600,1711553491445,-500.0,0.00055068,120]
[320778601,1711553491455,-4144.61,0.00055068,120]
[320778602,1711553491463,-500.0,0.00055068,120]
[320778603,1711553491472,-3872.4,0.00055068,120]
[320778604,1711553491484,-500.0,0.00055068,120]
[320778605,1711553491493,-500.0,0.00055068,120]
[320778606,1711553491503,-1827.64,0.00055068,120]
[320778607,1711553491513,-4156.67,0.00055068,120]
[320778608,1711553491522,-2416.16,0.00055068,120]
[320778609,1711553491534,-1711.52,0.00055068,120]
[320778610,1711553491544,-825.49,0.00055068,120]
[320778611,1711553491553,-500.0,0.00055068,120]
[320778612,1711553491562,-2283.13,0.00055068,120]
[320778613,1711553491571,-500.0,0.00055068,120]
[320778614,1711553491580,-500.0,0.00055068,120]
[320778615,1711553491591,-4602.95,0.00055068,120]
[320778616,1711553491602,-651.54,0.00055068,120]
[320778617,1711553491612,-3004.37,0.00055068,120]
[320778618,1711553491622,-688.36,0.00055068,120]
[320778619,1711553491633,-1160.44,0.00055068,120]
[320778620,1711553491643,-500.0,0.00055068,120]
[320778621,1711553491653,-1267.29,0.00055068,120]
[320778622,1711553491662,-500.0,0.00055068,120]
[320778623,1711553491671,-843.06,0.00055068,120]
[320778624,1711553491682,-4243.15,0.00055068,120]
[320778625,1711553491692,-500.0,0.00055068,120]
[320778626,1711553491702,-3026.19,0.00055068,120]
[320778627,1711553491712,-3059.6,0.00055068,120]
[320778628,1711553491722,-1678.36,0.00055068,120]
[320778629,1711553491732,-6063.81,0.00055068,120]
[320778630,1711553491741,-1817.92,0.00055068,120]
[320778631,1711553491750,-500.0,0.00055068,120]
[320778632,1711553491759,-3237.77,0.00055068,120]
[320778633,1711553491769,-1154.09,0.00055068,120]
[320778634,1711553491778,-4215.04,0.00055068,120]
[320778635,1711553491787,-500.0,0.00055068,120]
[320778636,1711553491797,-912.24,0.00055068,120]
[320778637,1711553491806,-2288.6,0.00055068,120]
[320778638,1711553491815,-500.0,0.00055068,120]
[320778639,1711553491825,-4804.76,0.00055068,120]
[320778640,1711553491834,-2886.23,0.00055068,120]
[320778641,1711553491844,-3025.17,0.00055068,120]
[320778642,1711553491855,-500.0,0.00055068,120]
[320778643,1711553491864,-5394.97128824,0.00055068,120]
[320778644,1711553491878,-7095.87871176,0.00055068,120]
[320778645,1711553491887,-657.85,0.00055068,120]
[320778646,1711553491897,-151.0,0.00055068,120]
[320778647,1711553491906,-729.05,0.00055068,120]
[320778648,1711553491915,-500.0,0.00055068,120]
[320778649,1711553491924,-978.09114568,0.00055068,120]
[320778650,1711553491936,-1469.00456192,0.00055068,120]
[320778651,1711553492060,-4765.0642924,0.00055068,120]
[320778652,1711553492069,-726.03,0.00055068,120]
[320778653,1711553492078,-1160.68,0.00055068,120]
[320778654,1711553492088,-2620.16,0.00055068,120]
[320778655,1711553492097,-5575.89,0.00055068,120]
[320778656,1711553492110,-500.0,0.00055068,120]
[320778657,1711553492119,-15721.57,0.00055068,120]
[320778658,1711553492129,-3485.62297626,0.00055068,120]
[320778659,1711553492720,-484.40481559,0.00021643,2]
[320778660,1711553492730,-238.707474,0.00023288,2]
[320778661,1711553492740,-370.36573053,0.00039899,120]
[320778662,1711553492751,-924.51,0.00046194,2]
[320778663,1711553492761,-409.3,0.00046194,2]
[320778664,1711553492771,-150.0,0.00046331,2]
[320778665,1711553492781,-161.39,0.00046331,2]
[320778666,1711553492790,-517.72,0.00046331,2]
[320778667,1711553492800,-385.44,0.00046331,2]
[320778668,1711553492810,-333.30949905,0.00047151,4]
[320778669,1711553492820,-1022.24395921,0.00047151,4]
[320778670,1711553492829,-2896.55352153,0.00049999,4]
[320778671,1711553492841,-291.65526421,0.00049999,4]
[320778672,1711553492856,-552.53933509,0.00049999,4]
[320778673,1711553492868,-5168.34696951,0.00049999,4]
[320778674,1711553493202,-21752.46224704,0.00049999,4]
[320778675,1711553493213,-907.6383507,0.00049999,2]
[320778676,1711553493223,-679.96641741,0.00050164,4]
[320778677,1711553493235,-1000.0,0.00050164,4]
[320778678,1711553493245,-150.0,0.00053015,7]
[320778679,1711553493256,-150.0,0.00053247,7]
[320778680,1711553493267,-150.0,0.00053361,7]
[320778681,1711553493278,-150.0,0.00053852,7]
[320778682,1711553493288,-150.0,0.00053886,7]
[320778683,1711553493299,-150.0,0.00053958,7]
[320778684,1711553493309,-150.0,0.00054002,7]
[320778685,1711553493320,-150.0,0.00054178,7]
[320778686,1711553493330,-150.0,0.00054237,7]
[320778687,1711553493341,-150.0,0.00054242,7]
[320778688,1711553493350,-2434.1,0.00054246,120]
[320778689,1711553493363,-150.0,0.00054433,7]
[320778690,1711553493372,-2434.1,0.0005452,120]
[320778691,1711553493381,-150.0,0.00054594,7]
[320778692,1711553493390,-2246.69702374,0.00055068,120]
[320778693,1711553493400,-40785.24,0.00055068,120]
[320778694,1711553493409,-286.83,0.00055068,120]
[320778695,1711553493419,-2439.94,0.00055068,120]
[320778696,1711553493429,-2118.14,0.00055068,120]
[320778697,1711553493438,-500.0,0.00055068,120]
[320778698,1711553493447,-722.58,0.00055068,120]
[320778699,1711553493457,-4517.81,0.00055068,120]
[320778700,1711553493466,-3489.67,0.00055068,120]
[320778701,1711553493475,-500.0,0.00055068,120]
[320778702,1711553493487,-1758.1,0.00055068,120]
[320778703,1711553493496,-500.0,0.00055068,120]
[320778704,1711553493505,-6123.0721614,0.00055068,120]
[320778705,1711553493517,-474.7478386,0.00055068,120]
[320778706,1711553493529,-500.0,0.00055068,120]
[320778707,1711553493540,-500.0,0.00055068,120]
[320778708,1711553493551,-2086.13,0.00055068,120]
[320778709,1711553493560,-917.46,0.00055068,120]
[320778710,1711553493570,-4851.72,0.00055068,120]
[320778711,1711553493579,-500.0,0.00055068,120]
[320778712,1711553493591,-13152.25211783,0.00055068,120]
[320778713,1711553493606,-314.29537966,0.00055068,120]
[320778714,1711553493619,-1062.8655,0.00055068,120]
[320778715,1711553493634,-764.15700251,0.00055068,120]
[320778716,1711553493643,-650.64,0.00055068,120]
[320778717,1711553493652,-500.0,0.00055068,120]
[320778718,1711553493661,-500.0,0.00055068,120]
[320778719,1711553493671,-1579.35890681,0.00055068,120]
[320778720,1711553493695,-664.60109319,0.00055068,120]
[320778721,1711553493705,-4177.03,0.00055068,120]
[320778722,1711553493715,-4670.76,0.00055068,120]
[320778723,1711553493725,-574.56,0.00055068,120]
[320778724,1711553493734,-500.0,0.00055068,120]
[320778725,1711553493743,-500.0,0.00055068,120]
[320778726,1711553493753,-8976.15,0.00055068,120]
[320778727,1711553493763,-2370.37,0.00055068,120]
[320778728,1711553493772,-1211.89,0.00055068,120]
[320778729,1711553493782,-339.80743607,0.00055068,120]
[320778730,1711553493791,-500.0,0.00055068,120]
[320778731,1711553493801,-770.12,0.00055068,120]
[320778732,1711553493810,-2494.82,0.00055068,120]
[320778733,1711553493819,-2055.96,0.00055068,120]
[320778734,1711553493829,-151.0,0.00055068,120]
[320778735,1711553493838,-500.0,0.00055068,120]
[320778736,1711553493848,-4094.91,0.00055068,120]
[320778737,1711553493859,-500.0,0.00055068,120]
[320778738,1711553493868,-1037.81,0.00055068,120]
[320778739,1711553493878,-5481.22,0.00055068,120]
[320778740,1711553493887,-397.57319276,0.00055068,120]
[320778741,1711553493896,-517.85,0.00055068,7]
[320778742,1711553493905,-500.0,0.00055068,120]
[320778743,1711553493915,-1247.19,0.00055068,120]
[320778744,1711553493924,-6740.46,0.00055068,120]
[320778745,1711553493934,-2203.05,0.00055068,120]
[320778746,1711553493944,-500.0,0.00055068,120]
[320778747,1711553493953,-695.08,0.00055068,120]
[320778748,1711553493962,-875.57,0.00055068,120]
[320778749,1711553493971,-1100.58,0.00055068,120]
[320778750,1711553493981,-500.0,0.00055068,120]
[320778751,1711553493990,-2524.9,0.00055068,120]
[320778752,1711553494000,-1980.91,0.00055068,120]
[320778753,1711553494009,-1277.4,0.00055068,120]
[320778754,1711553494018,-500.0,0.00055068,120]
[320778755,1711553494027,-665.6,0.00055068,120]
[320778756,1711553494037,-6780.06,0.00055068,120]
[320778757,1711553494046,-151.0,0.00055068,30]
[320778758,1711553494055,-2890.45,0.00055068,120]
[320778759,1711553494065,-1380.64,0.00055068,120]
[320778760,1711553494074,-2894.79,0.00055068,120]
[320778761,1711553494084,-831.4,0.00055068,120]
[320778762,1711553494093,-500.0,0.00055068,120]
[320778763,1711553494104,-500.0,0.00055068,120]
[320778764,1711553494114,-2473.02,0.00055068,120]
[320778765,1711553494123,-652.47,0.00055068,120]
[320778766,1711553494132,-833.55,0.00055068,120]
[320778767,1711553494141,-500.0,0.00055068,85]
[320778768,1711553494151,-674.38,0.00055068,120]
[320778769,1711553494160,-500.0,0.00055068,120]
[320778770,1711553494169,-571.745405,0.00055068,120]
[320778771,1711553494178,-2436.51,0.00055068,120]
[320778772,1711553494187,-500.0,0.00055068,120]
[320778773,1711553494197,-2426.57,0.00055068,120]
[320778774,1711553494206,-1471.44,0.00055068,120]
[320778775,1711553494216,-571.745405,0.00055068,120]
[320778776,1711553494225,-152.365744,0.00055076,120]
[320778777,1711553494235,-1560.77306,0.0005508,73]
[320778778,1711553494245,-4874.90714508,0.0005508,120]
[320778779,1711553494254,-160.07183501,0.00055081,120]
[320778780,1711553494264,-151.0,0.000551,7]
[320778781,1711553494273,-151.0,0.000551,120]
[320778782,1711553494284,-151.0,0.000551,14]
[320778783,1711553494297,-151.0,0.000551,120]
[320778784,1711553494307,-248.012354,0.000551,120]
[320778785,1711553494316,-216.767078,0.000551,30]
[320778786,1711553494325,-216.767078,0.000551,30]
[320778787,1711553494335,-152.56,0.000551,8]
[320778788,1711553494345,-152.56,0.000551,8]
[320778789,1711553494356,-152.56,0.000551,8]
[320778790,1711553494366,-152.56,0.000551,8]
[320778791,1711553494375,-152.56,0.000551,8]
[320778792,1711553494383,-152.56,0.000551,8]
[320778793,1711553494393,-152.56,0.000551,8]
[320778794,1711553494403,-152.56,0.000551,8]
[320778795,1711553494412,-152.56,0.000551,8]
[320778796,1711553494423,-152.56,0.000551,8]
[320778797,1711553494432,-2795.38,0.000551,8]
[320778798,1711553494442,-2795.38,0.000551,8]
[320778799,1711553494451,-2795.38,0.000551,8]
[320778800,1711553494460,-2795.38,0.000551,8]
[320778801,1711553494470,-2795.38,0.000551,8]
[320778802,1711553494479,-2795.38,0.000551,8]
[320778803,1711553494490,-2795.38,0.000551,8]
[320778804,1711553494500,-2795.38,0.000551,8]
[320778805,1711553494617,-2795.38,0.000551,8]
[320778806,1711553494632,-2795.38,0.000551,8]
[320778807,1711553494641,-2795.38,0.000551,8]
[320778808,1711553494651,-2795.38,0.000551,8]
[320778809,1711553494662,-2795.38,0.000551,8]
[320778810,1711553494673,-2795.38,0.000551,8]
[320778811,1711553494684,-2795.38,0.000551,8]
[320778812,1711553494694,-2795.38,0.000551,8]
[320778813,1711553494704,-2795.38,0.000551,8]
[320778814,1711553494714,-2795.38,0.000551,8]
[320778815,1711553494724,-2795.38,0.000551,8]
[320778816,1711553494734,-2795.38,0.000551,8]
[320778817,1711553494743,-505.71100429,0.000551,120]
[320778818,1711553494753,-170.0,0.0005512,76]
[320778819,1711553494762,-226.7310712,0.00055149,120]
[320778820,1711553494772,-153.06254268,0.00055151,120]
[320778821,1711553494781,-4408.00426294,0.0005516,7]
[320778822,1711553494791,-226.7310712,0.00055181,120]
[320778823,1711553494801,-157.36998597,0.00055204,120]
[320778824,1711553494810,-152.87854309,0.00055216,120]
[320778825,1711553494820,-150.0,0.00055248,60]
[320778826,1711553494829,-500.0,0.00055248,60]
[320778827,1711553494839,-150.0,0.00055252,60]
[320778828,1711553494848,-167.41909627,0.00055271,120]
[320778829,1711553494861,-505.71100429,0.00055283,120]
[320778830,1711553494871,-505.71100429,0.00055286,120]
[320778831,1711553494880,-2741.1164819,0.00055292,33]
[320778832,1711553494890,-152.28404784,0.00055299,120]
[320778833,1711553494900,-500.0,0.000553,30]
[320778834,1711553494910,-155.41503158,0.00055315,120]
[320778835,1711553494920,-501.32781995,0.00055321,30]
[320778836,1711553494930,-500.0,0.00055341,90]
[320778837,1711553494940,-1000.0,0.00055341,90]
[320778838,1711553494950,-48950.0,0.00055342,120]
[320778839,1711553494959,-225.0626651,0.00055342,4]
[320778840,1711553494970,-500.0,0.00055342,120]
[320778841,1711553494979,-500.0,0.00055342,120]
[320778842,1711553494989,-500.0,0.00055342,120]
[320778843,1711553494998,-500.0,0.00055342,120]
[320778844,1711553495009,-151.0,0.00055342,120]
[320778845,1711553495019,-500.0,0.00055342,120]
[320778846,1711553495033,-500.0,0.00055342,120]
[320778847,1711553495044,-500.0,0.00055342,120]
[320778848,1711553495054,-500.0,0.00055342,120]
[320778849,1711553495064,-500.0,0.00055342,120]
[320778850,1711553495074,-576.79,0.00055342,120]
[320778851,1711553495084,-500.0,0.00055342,120]
[320778852,1711553495094,-500.0,0.00055342,120]
[320778853,1711553495107,-500.0,0.00055342,120]
[320778854,1711553495117,-500.0,0.00055342,120]
[320778855,1711553495128,-500.0,0.00055342,120]
[320778856,1711553495138,-151.0,0.00055342,120]
[320778857,1711553495148,-500.0,0.00055342,120]
[320778858,1711553495160,-500.0,0.00055342,120]
[320778859,1711553495170,-500.0,0.00055342,120]
[320778860,1711553495180,-500.0,0.00055342,120]
[320778861,1711553495191,-181.62370424,0.00055342,120]
[320778862,1711553495202,-500.0,0.00055342,120]
[320778863,1711553495212,-500.0,0.00055342,120]
[320778864,1711553495223,-500.0,0.00055342,120]
[320778865,1711553495234,-1596.73,0.00055342,120]
[320778866,1711553495245,-500.0,0.00055342,120]
[320778867,1711553495256,-500.0,0.00055342,120]
[320778868,1711553495266,-500.0,0.00055342,120]
[320778869,1711553495276,-463.32431864,0.00055342,120]
[320778870,1711553495287,-851.83,0.00055342,120]
[320778871,1711553495296,-500.0,0.00055342,120]
[320778872,1711553495307,-500.0,0.00055342,120]
[320778873,1711553495318,-500.0,0.00055342,120]
[320778874,1711553495332,-500.0,0.00055342,120]
[320778875,1711553495343,-500.0,0.00055342,120]
[320778876,1711553495355,-500.0,0.00055342,120]
[320778877,1711553495367,-500.0,0.00055342,120]
[320778878,1711553495378,-500.0,0.00055342,120]
[320778879,1711553495389,-758.43,0.00055342,120]
[320778880,1711553495400,-710.92,0.00055342,120]
[320778881,1711553495411,-500.0,0.00055342,120]
[320778882,1711553495421,-277.40728,0.00055342,120]
[320778883,1711553495432,-500.0,0.00055342,120]
[320778884,1711553495443,-500.0,0.00055342,120]
[320778885,1711553495453,-500.0,0.00055342,120]
[320778886,1711553495464,-500.0,0.00055342,120]
[320778887,1711553495474,-500.0,0.00055342,120]
[320778888,1711553495487,-500.0,0.00055342,120]
[320778889,1711553495498,-500.0,0.00055342,120]
[320778890,1711553495508,-500.0,0.00055342,120]
[320778891,1711553495519,-500.0,0.00055342,120]
[320778892,1711553495531,-500.0,0.00055342,120]
[320778893,1711553495543,-437.56,0.00055342,120]
[320778894,1711553495554,-500.0,0.00055342,120]
[320778895,1711553495564,-500.0,0.00055342,120]
[320778896,1711553495575,-500.0,0.00055342,120]
[320778897,1711553495586,-500.0,0.00055342,120]
[320778898,1711553495596,-500.0,0.00055342,120]
[320778899,1711553495611,-500.0,0.00055342,120]
[320778900,1711553495622,-500.0,0.00055342,120]
[320778901,1711553495633,-500.0,0.00055342,120]
[320778902,1711553495644,-500.0,0.00055342,120]
[320778903,1711553495655,-500.0,0.00055342,120]
[320778904,1711553495666,-500.0,0.00055342,120]
[320778905,1711553495676,-500.0,0.00055342,120]
[320778906,1711553495687,-500.0,0.00055342,120]
[320778907,1711553495697,-500.0,0.00055342,120]
[320778908,1711553495708,-500.0,0.00055342,120]
[320778909,1711553495719,-500.0,0.00055342,120]
[320778910,1711553495729,-500.0,0.00055342,120]
[320778911,1711553495739,-686.01,0.00055342,120]
[320778912,1711553495749,-447.68,0.00055342,120]
[320778913,1711553495760,-500.0,0.00055342,120]
[320778914,1711553495774,-334.07,0.00055342,120]
[320778915,1711553495785,-500.0,0.00055342,120]
[320778916,1711553495797,-500.0,0.00055342,120]
[320778917,1711553495807,-500.0,0.00055342,120]
[320778918,1711553495818,-500.0,0.00055342,120]
[320778919,1711553495830,-500.0,0.00055342,120]
[320778920,1711553495842,-500.0,0.00055342,120]
[320778921,1711553495853,-500.0,0.00055342,120]
[320778922,1711553495866,-500.0,0.00055342,120]
[320778923,1711553495876,-500.0,0.00055342,120]
[320778924,1711553495887,-264.369939,0.00055342,7]
[320778925,1711553495898,-500.0,0.00055342,120]
[320778926,1711553495908,-500.0,0.00055342,120]
[320778927,1711553495919,-500.0,0.00055342,120]
[320778928,1711553495929,-500.0,0.00055342,120]
[320778929,1711553495940,-602.12593737,0.00055342,120]
[320778930,1711553495951,-151.0,0.00055342,120]
[320778931,1711553495962,-500.0,0.00055342,120]
[320778932,1711553495972,-500.0,0.00055342,120]
[320778933,1711553495983,-530.2,0.00055342,120]
[320778934,1711553495994,-500.0,0.00055342,120]
[320778935,1711553496005,-500.0,0.00055342,120]
[320778936,1711553496015,-500.0,0.00055342,120]
[320778937,1711553496025,-500.0,0.00055342,120]
[320778938,1711553496039,-500.0,0.00055342,120]
[320778939,1711553496050,-500.0,0.00055342,120]
[320778940,1711553496060,-500.0,0.00055342,120]
[320778941,1711553496071,-500.0,0.00055342,120]
[320778942,1711553496081,-500.0,0.00055342,120]
[320778943,1711553496092,-500.0,0.00055342,120]
[320778944,1711553496102,-500.0,0.00055342,120]
[320778945,1711553496115,-500.0,0.00055342,120]
[320778946,1711553496126,-500.0,0.00055342,120]
[320778947,1711553496138,-638.0,0.00055342,120]
[320778948,1711553496148,-1726.93,0.00055342,120]
[320778949,1711553496159,-500.0,0.00055342,120]
[320778950,1711553496169,-500.0,0.00055342,120]
[320778951,1711553496180,-500.0,0.00055342,120]
[320778952,1711553496191,-500.0,0.00055342,120]
[320778953,1711553496202,-500.0,0.00055342,120]
[320778954,1711553496212,-500.0,0.00055342,120]
[320778955,1711553496223,-500.0,0.00055342,120]
[320778956,1711553496234,-946.71,0.00055342,120]
[320778957,1711553496244,-873.96,0.00055342,120]
[320778958,1711553496255,-500.0,0.00055342,120]
[320778959,1711553496265,-500.0,0.00055342,120]
[320778960,1711553496275,-500.0,0.00055342,120]
[320778961,1711553496285,-344.74694199,0.00055342,120]